fUST/lending_fUST_20250510
["ID","MTS","AMOUNT","RATE_DAILY","PERIOD"]
[360542291,1746870648720,-400.0,8.391e-05,2]
[360542292,1746870648731,-665.996396,8.391e-05,2]
[360542293,1746870648740,-665.996396,8.391e-05,2]
[360542294,1746870648751,-665.996396,8.391e-05,2]
[360542295,1746870648761,-665.996396,8.391e-05,2]
[360542296,1746870648772,-400.0,8.391e-05,2]
[360542297,1746870648782,-400.0,8.391e-05,2]
[360542298,1746870648792,-2369.94,8.391e-05,2]
[360542299,1746870648803,-2369.94,8.391e-05,2]
[360542300,1746870648812,-2369.94,8.391e-05,2]
[360542301,1746870648822,-2369.94,8.391e-05,2]
[360542302,1746870648832,-2369.94,8.391e-05,2]
[360542303,1746870648842,-2369.94,8.391e-05,2]
[360542304,1746870648852,-2369.94,8.391e-05,2]
[360542305,1746870648862,-400.0,8.391e-05,2]
[360542306,1746870648872,-203.006673,8.391e-05,2]
[360542307,1746870648882,-203.006673,8.391e-05,2]
[360542308,1746870648894,-203.006673,8.391e-05,2]
[360542309,1746870648904,-203.006673,8.391e-05,2]
[360542310,1746870648914,-203.006673,8.391e-05,2]
[360542311,1746870648925,-203.006673,8.391e-05,2]
[360542312,1746870648935,-400.0,8.391e-05,2]
[360542313,1746870648945,-497.5,8.391e-05,2]
[360542314,1746870648955,-203.006673,8.391e-05,2]
[360542315,1746870648965,-203.006673,8.391e-05,2]
[360542316,1746870648975,-203.006673,8.391e-05,2]
[360542317,1746870648985,-1333.58,8.391e-05,2]
[360542318,1746870648994,-203.006673,8.391e-05,2]
[360542319,1746870649004,-400.0,8.391e-05,2]
[360542320,1746870649014,-203.006673,8.391e-05,2]
[360542321,1746870649025,-203.006673,8.391e-05,2]
[360542322,1746870649035,-400.0,8.391e-05,2]
[360542323,1746870649045,-400.0,8.391e-05,2]
[360542324,1746870649055,-400.0,8.391e-05,2]
[360542325,1746870649066,-2006.99,8.391e-05,2]
[360542326,1746870649076,-1077.86,8.391e-05,2]
[360542327,1746870649087,-400.0,8.391e-05,2]
[360542328,1746870649097,-720.04,8.391e-05,2]
[360542329,1746870649107,-400.0,8.391e-05,2]
[360542330,1746870649117,-2320.12,8.391e-05,2]
[360542331,1746870649127,-1469.99,8.391e-05,2]
[360542332,1746870649136,-502.03216064,8.391e-05,2]
[360542333,1746870649146,-400.0,8.391e-05,2]
[360542334,1746870649156,-506.03067395,8.391e-05,2]
[360542335,1746870649166,-400.0,8.391e-05,2]
[360542336,1746870649179,-961.75,8.391e-05,2]
[360542337,1746870649189,-400.0,8.391e-05,2]
[360542338,1746870649199,-405.60828321,8.391e-05,2]
[360542339,1746870649209,-356.015929,8.391e-05,2]
[360542340,1746870649218,-356.015929,8.391e-05,2]
[360542341,1746870649228,-356.015929,8.391e-05,2]
[360542342,1746870649238,-440.61374178,8.391e-05,2]
[360542343,1746870649249,-356.015929,8.391e-05,2]
[360542344,1746870649260,-356.015929,8.391e-05,2]
[360542345,1746870649270,-356.015929,8.391e-05,2]
[360542346,1746870649280,-400.0,8.391e-05,2]
[360542347,1746870649290,-356.015929,8.391e-05,2]
[360542348,1746870649300,-356.015929,8.391e-05,2]
[360542349,1746870649310,-356.015929,8.391e-05,2]
[360542350,1746870649319,-356.015929,8.391e-05,2]
[360542351,1746870649329,-356.015929,8.391e-05,2]
[360542352,1746870649339,-356.015929,8.391e-05,2]
[360542353,1746870649350,-1000.99,8.391e-05,2]
[360542354,1746870649360,-400.0,8.391e-05,2]
[360542355,1746870649370,-400.0,8.391e-05,2]
[360542356,1746870649380,-1369.89,8.391e-05,2]
[360542357,1746870649389,-400.0,8.391e-05,2]
[360542358,1746870649399,-422.25959872,8.391e-05,2]
[360542359,1746870649409,-220.52300125,8.391e-05,2]
[360542360,1746870649419,-400.0,8.391e-05,2]
[360542361,1746870649431,-151.0,8.391e-05,2]
[360542362,1746870649440,-153.227477,8.391e-05,2]
[360542363,1746870649450,-236.67288098,8.391e-05,2]
[360542364,1746870649460,-400.0,8.391e-05,2]
[360542365,1746870649470,-151.0,8.391e-05,2]
[360542366,1746870649481,-280.865096,8.391e-05,2]
[360542367,1746870649491,-400.0,8.391e-05,2]
[360542368,1746870649500,-408.04786663,8.391e-05,2]
[360542369,1746870649510,-400.0,8.391e-05,2]
[360542370,1746870649520,-400.0,8.391e-05,2]
[360542371,1746870649529,-326.77804809,8.391e-05,2]
[360542372,1746870649539,-400.0,8.391e-05,2]
[360542373,1746870649548,-1043.43,8.391e-05,2]
[360542374,1746870649558,-400.0,8.391e-05,2]
[360542375,1746870649568,-1664.583735,8.391e-05,2]
[360542376,1746870649578,-1664.583735,8.391e-05,2]
[360542377,1746870649588,-1664.583735,8.391e-05,2]
[360542378,1746870649598,-1664.583735,8.391e-05,2]
[360542379,1746870649608,-1664.583735,8.391e-05,2]
[360542380,1746870649618,-1664.583735,8.391e-05,2]
[360542381,1746870649628,-400.0,8.391e-05,2]
[360542382,1746870649638,-1664.583735,8.391e-05,2]
[360542383,1746870649647,-1664.583735,8.391e-05,2]
[360542384,1746870649658,-1664.583735,8.391e-05,2]
[360542385,1746870649667,-151.0,8.391e-05,2]
[360542386,1746870649678,-1664.583735,8.391e-05,2]
[360542387,1746870649688,-1664.583735,8.391e-05,2]
[360542388,1746870649698,-151.0,8.391e-05,2]
[360542389,1746870649708,-1664.583735,8.391e-05,2]
[360542390,1746870649718,-151.0,8.391e-05,2]
[360542391,1746870649728,-151.0,8.391e-05,2]
[360542392,1746870649738,-151.0,8.391e-05,2]
[360542393,1746870649748,-151.0,8.391e-05,2]
[360542394,1746870649758,-400.0,8.391e-05,2]
[360542395,1746870649768,-151.0,8.391e-05,2]
[360542396,1746870649777,-151.0,8.391e-05,2]
[360542397,1746870649787,-262.995219,8.391e-05,2]
[360542398,1746870649797,-400.0,8.391e-05,2]
[360542399,1746870649806,-192.188702,8.391e-05,2]
[360542400,1746870649816,-192.188702,8.391e-05,2]
[360542401,1746870649825,-192.188702,8.391e-05,2]
[360542402,1746870649835,-192.188702,8.391e-05,2]
[360542403,1746870649845,-192.188702,8.391e-05,2]
[360542404,1746870649854,-192.188702,8.391e-05,2]
[360542405,1746870649864,-470.67541228,8.391e-05,2]
[360542406,1746870649874,-192.188702,8.391e-05,2]
[360542407,1746870649884,-192.188702,8.391e-05,2]
[360542408,1746870649893,-151.0,8.391e-05,2]
[360542409,1746870649903,-192.188702,8.391e-05,2]
[360542410,1746870649913,-250.210001,8.391e-05,2]
[360542411,1746870649923,-192.188702,8.391e-05,2]
[360542412,1746870649932,-192.188702,8.391e-05,2]
[360542413,1746870649942,-192.188702,8.391e-05,2]
[360542414,1746870649952,-400.0,8.391e-05,2]
[360542415,1746870649961,-400.0,8.391e-05,2]
[360542416,1746870649971,-400.0,8.391e-05,2]
[360542417,1746870649980,-426.215141,8.391e-05,2]
[360542418,1746870649990,-426.215141,8.391e-05,2]
[360542419,1746870649999,-426.215141,8.391e-05,2]
[360542420,1746870650009,-426.215141,8.391e-05,2]
[360542421,1746870650019,-426.215141,8.391e-05,2]
[360542422,1746870650029,-426.215141,8.391e-05,2]
[360542423,1746870650039,-400.0,8.391e-05,2]
[360542424,1746870650049,-426.215141,8.391e-05,2]
[360542425,1746870650059,-426.215141,8.391e-05,2]
[360542426,1746870650068,-426.215141,8.391e-05,2]
[360542427,1746870650078,-426.215141,8.391e-05,2]
[360542428,1746870650087,-426.215141,8.391e-05,2]
[360542429,1746870650097,-426.215141,8.391e-05,2]
[360542430,1746870650107,-400.0,8.391e-05,2]
[360542431,1746870650117,-400.0,8.391e-05,2]
[360542432,1746870650127,-231.269817,8.392e-05,2]
[360542433,1746870650137,-231.269817,8.392e-05,2]
[360542434,1746870650147,-151.0,8.392e-05,2]
[360542435,1746870650156,-832.852933,8.392e-05,2]
[360542436,1746870650167,-832.852933,8.392e-05,2]
[360542437,1746870650180,-151.0,8.392e-05,2]
[360542438,1746870650190,-151.0,8.392e-05,2]
[360542439,1746870650200,-442.783607,8.392e-05,2]
[360542440,1746870650210,-442.783607,8.392e-05,2]
[360542441,1746870650219,-442.783607,8.392e-05,2]
[360542442,1746870650230,-442.783607,8.392e-05,2]
[360542443,1746870650240,-151.0,8.392e-05,2]
[360542444,1746870650251,-151.0,8.392e-05,2]
[360542445,1746870650261,-151.0,8.392e-05,2]
[360542446,1746870650270,-151.0,8.392e-05,2]
[360542447,1746870650280,-151.0,8.392e-05,2]
[360542448,1746870650290,-151.0,8.392e-05,2]
[360542449,1746870650299,-563.971401,8.392e-05,2]
[360542450,1746870650308,-563.971401,8.392e-05,2]
[360542451,1746870650318,-355.38231,8.392e-05,2]
[360542452,1746870650327,-355.38231,8.392e-05,2]
[360542453,1746870650337,-355.38231,8.392e-05,2]
[360542454,1746870650346,-355.38231,8.392e-05,2]
[360542455,1746870650356,-151.0,8.392e-05,2]
[360542456,1746870650366,-290.01517,8.392e-05,2]
[360542457,1746870650376,-151.0,8.392e-05,2]
[360542458,1746870650386,-287.611872,8.392e-05,2]
[360542459,1746870650395,-151.0,8.392e-05,2]
[360542460,1746870650405,-286.65463,8.392e-05,2]
[360542461,1746870650414,-286.65463,8.392e-05,2]
[360542462,1746870650424,-286.65463,8.392e-05,2]
[360542463,1746870650434,-286.65463,8.392e-05,2]
[360542464,1746870650443,-398.515347,8.392e-05,2]
[360542465,1746870650453,-398.515347,8.392e-05,2]
[360542466,1746870650463,-500.0,8.392e-05,2]
[360542467,1746870650472,-6781.098521,8.392e-05,2]
[360542468,1746870650481,-151.0,8.392e-05,2]
[360542469,1746870650491,-6781.098521,8.392e-05,2]
[360542470,1746870650501,-151.0,8.392e-05,2]
[360542471,1746870650510,-151.0,8.392e-05,2]
[360542472,1746870650520,-406.112386,8.392e-05,2]
[360542473,1746870650530,-406.112386,8.392e-05,2]
[360542474,1746870650540,-705.19289,8.392e-05,2]
[360542475,1746870650550,-705.19289,8.392e-05,2]
[360542476,1746870650561,-151.0,8.392e-05,2]
[360542477,1746870650570,-155.33712,8.392e-05,2]
[360542478,1746870650580,-500.0,8.392e-05,2]
[360542479,1746870650590,-155.33712,8.392e-05,2]
[360542480,1746870650600,-665.996396,8.392e-05,2]
[360542481,1746870650610,-665.996396,8.392e-05,2]
[360542482,1746870650619,-2369.94,8.392e-05,2]
[360542483,1746870650629,-203.006673,8.392e-05,2]
[360542484,1746870650638,-203.006673,8.392e-05,2]
[360542485,1746870650648,-356.015929,8.392e-05,2]
[360542486,1746870650659,-356.015929,8.392e-05,2]
[360542487,1746870650668,-1664.583735,8.392e-05,2]
[360542488,1746870650678,-1664.583735,8.392e-05,2]
[360542489,1746870650688,-151.0,8.392e-05,2]
[360542490,1746870650698,-192.188702,8.392e-05,2]
[360542491,1746870650707,-192.188702,8.392e-05,2]
[360542492,1746870650717,-426.215141,8.392e-05,2]
[360542493,1746870650727,-426.215141,8.392e-05,2]
[360542494,1746870650736,-408.36227071,8.393e-05,2]
[360542495,1746870650745,-509.46829807,8.393e-05,2]
[360542496,1746870650755,-500.0,8.393e-05,2]
[360542497,1746870650764,-503.51089266,8.393e-05,2]
[360542498,1746870650774,-500.89417392,8.393e-05,2]
[360542499,1746870650784,-500.0,8.393e-05,2]
[360542500,1746870650793,-500.0,8.393e-05,2]
[360542501,1746870650803,-502.91119433,8.393e-05,2]
[360542502,1746870650812,-151.19159423,8.393e-05,2]
[360542503,1746870650821,-500.0,8.393e-05,2]
[360542504,1746870650830,-502.07788518,8.393e-05,2]
[360542505,1746870650840,-500.0,8.393e-05,2]
[360542506,1746870650849,-500.0,8.393e-05,2]
[360542507,1746870650859,-459.80137787,8.393e-05,2]
[360542508,1746870650868,-500.0,8.393e-05,2]
[360542509,1746870650878,-500.0,8.393e-05,2]
[360542510,1746870650887,-500.0,8.393e-05,2]
[360542511,1746870650897,-500.0,8.393e-05,2]
[360542512,1746870650908,-504.3942579,8.393e-05,2]
[360542513,1746870650917,-500.0,8.393e-05,2]
[360542514,1746870650928,-500.0,8.393e-05,2]
[360542515,1746870650938,-500.0,8.393e-05,2]
[360542516,1746870650948,-500.0,8.393e-05,2]
[360542517,1746870650959,-500.0,8.393e-05,2]
[360542518,1746870650969,-162.02522089,8.393e-05,2]
[360542519,1746870650979,-500.0,8.393e-05,2]
[360542520,1746870650989,-500.0,8.393e-05,2]
[360542521,1746870650999,-500.0,8.393e-05,2]
[360542522,1746870651009,-500.0,8.393e-05,2]
[360542523,1746870651020,-500.0,8.393e-05,2]
[360542524,1746870651031,-501.44768991,8.393e-05,2]
[360542525,1746870651041,-500.0,8.393e-05,2]
[360542526,1746870651051,-500.0,8.393e-05,2]
[360542527,1746870651062,-500.0,8.393e-05,2]
[360542528,1746870651073,-152.0,8.394e-05,2]
[360542529,1746870651084,-563.971401,8.408e-05,2]
[360542530,1746870651093,-563.971401,8.408e-05,2]
[360542531,1746870651103,-151.0,8.408e-05,2]
[360542532,1746870651112,-151.0,8.408e-05,2]
[360542533,1746870651121,-500.0,8.408e-05,2]
[360542534,1746870651131,-500.0,8.408e-05,2]
[360542535,1746870651141,-151.0,8.408e-05,2]
[360542536,1746870651150,-151.0,8.408e-05,2]
[360542537,1746870651159,-2465.39,8.408e-05,2]
[360542538,1746870651169,-2465.39,8.408e-05,2]
[360542539,1746870651182,-2465.39,8.408e-05,2]
[360542540,1746870651191,-1146.86524366,8.408e-05,2]
[360542541,1746870651725,-1318.52475634,8.408e-05,2]
[360542542,1746870651735,-992.84925305,8.408e-05,2]
[360542543,1746870652645,-400.0,8.386e-05,2]
[360542544,1746870652655,-1043.31,8.386e-05,2]
[360542545,1746870652665,-400.0,8.387e-05,2]
[360542546,1746870652675,-406.1,8.387e-05,2]
[360542547,1746870652684,-400.0,8.387e-05,2]
[360542548,1746870652694,-141.38121941,8.387e-05,2]
[360542550,1746870780008,10463.9175813,7.397e-05,2]
[360542563,1746871062013,2003.2796836,7.376e-05,2]
[360542564,1746871097364,40000.0,7.2e-05,2]
[360543048,1746871430759,-259.9289717,8.272e-05,2]
[360543049,1746871430781,-400.57950154,8.277e-05,2]
[360543050,1746871430803,-400.0,8.277e-05,2]
[360543051,1746871430832,-500.0,8.277e-05,2]
[360543052,1746871430856,-500.0,8.277e-05,2]
[360543053,1746871431164,-639.44652541,8.277e-05,2]
[360543054,1746871431191,-325.56393024,8.277e-05,2]
[360543055,1746871431215,-158.59444123,8.277e-05,2]
[360543056,1746871431241,-185.67848941,8.277e-05,2]
[360543057,1746871431266,-500.0,8.277e-05,2]
[360543058,1746871431287,-204.57093817,8.277e-05,2]
[360543059,1746871431313,-500.0,8.277e-05,2]
[360543060,1746871431336,-600.8726861,8.277e-05,2]
[360543061,1746871431366,-500.0,8.277e-05,2]
[360543062,1746871431394,-500.0,8.277e-05,2]
[360543063,1746871431418,-500.0,8.277e-05,2]
[360543064,1746871431445,-500.0,8.277e-05,2]
[360543065,1746871431467,-500.0,8.277e-05,2]
[360543066,1746871431490,-500.0,8.277e-05,2]
[360543067,1746871431516,-500.0,8.277e-05,2]
[360543068,1746871431539,-500.0,8.277e-05,2]
[360543069,1746871431562,-500.0,8.277e-05,2]
[360543070,1746871431589,-392.86328296,8.277e-05,2]
[360543071,1746871431612,-500.0,8.277e-05,2]
[360543072,1746871431636,-161.19503298,8.277e-05,2]
[360543073,1746871431660,-346.59599043,8.277e-05,2]
[360543074,1746871431684,-500.0,8.277e-05,2]
[360543075,1746871431707,-500.0,8.277e-05,2]
[360543076,1746871431731,-500.0,8.277e-05,2]
[360543077,1746871431754,-500.0,8.277e-05,2]
[360543078,1746871431777,-500.0,8.277e-05,2]
[360543079,1746871431801,-500.0,8.277e-05,2]
[360543080,1746871431826,-500.0,8.277e-05,2]
[360543081,1746871431848,-424.11020983,8.277e-05,2]
[360543086,1746871582875,-300.0,8.275e-05,2]
[360543087,1746871582899,-300.0,8.275e-05,2]
[360543088,1746871582922,-500.0,8.276e-05,2]
[360543089,1746871582946,-500.0,8.276e-05,2]
[360543090,1746871582968,-500.0,8.276e-05,2]
[360543091,1746871582990,-500.0,8.276e-05,2]
[360543092,1746871583013,-500.0,8.276e-05,2]
[360543093,1746871583035,-154.762587,8.276e-05,2]
[360543094,1746871583056,-500.0,8.276e-05,2]
[360543095,1746871583078,-500.0,8.276e-05,2]
[360543096,1746871583100,-500.0,8.276e-05,2]
[360543097,1746871583123,-500.0,8.276e-05,2]
[360543098,1746871583145,-500.0,8.276e-05,2]
[360543099,1746871583166,-243.75586875,8.276e-05,2]
[360543100,1746871583187,-500.0,8.276e-05,2]
[360543101,1746871583208,-500.0,8.276e-05,2]
[360543102,1746871583230,-500.0,8.276e-05,2]
[360543103,1746871583253,-586.84011215,8.276e-05,2]
[360543104,1746871583275,-500.0,8.276e-05,2]
[360543105,1746871583298,-500.0,8.276e-05,2]
[360543106,1746871583321,-199.7730902,8.276e-05,2]
[360543107,1746871583343,-500.0,8.276e-05,2]
[360543108,1746871583366,-214.8683419,8.276e-05,2]
[360543117,1746871756142,250.0,7.276e-05,2]
[360543185,1746871832356,-300.0,8.272e-05,2]
[360543187,1746871832368,-577.89475117,8.273e-05,2]
[360543189,1746871832378,-141.73141853,8.273e-05,2]
[360543263,1746871833113,-358.26858147,8.273e-05,2]
[360543265,1746871833123,-297.61256779,8.273e-05,2]
[360543267,1746871833133,-264.59156761,8.273e-05,2]
[360543269,1746871833145,-35.40843239,8.273e-05,2]
[360543271,1746871833155,-300.0,8.273e-05,2]
[360543273,1746871833166,-300.0,8.273e-05,2]
[360543275,1746871833176,-300.0,8.273e-05,2]
[360543277,1746871833186,-1200.0,8.273e-05,2]
[360543279,1746871833195,-5935.09813551,8.274e-05,2]
[360543281,1746871833207,-9827.48922064,8.274e-05,2]
[360543283,1746871833217,-400.0,8.274e-05,2]
[360543286,1746871833227,-400.0,8.274e-05,2]
[360543288,1746871833237,-400.0,8.274e-05,2]
[360543290,1746871833247,-400.0,8.274e-05,2]
[360543292,1746871833257,-284.40548368,8.274e-05,2]
[360543293,1746871833268,-430.43618448,8.274e-05,2]
[360543294,1746871833278,-400.0,8.274e-05,2]
[360543295,1746871833288,-400.0,8.274e-05,2]
[360543296,1746871833298,-400.0,8.274e-05,2]
[360543297,1746871833308,-200.63030756,8.274e-05,2]
[360543298,1746871833318,-400.0,8.274e-05,2]
[360543299,1746871833327,-400.0,8.274e-05,2]
[360543300,1746871833338,-400.0,8.274e-05,2]
[360543301,1746871833347,-400.0,8.276e-05,2]
[360543302,1746871833357,-400.0,8.276e-05,2]
[360543303,1746871833367,-3513.51,8.276e-05,2]
[360543304,1746871833376,-400.0,8.276e-05,2]
[360543305,1746871833388,-400.0,8.276e-05,2]
[360543306,1746871833398,-400.0,8.276e-05,2]
[360543307,1746871833409,-400.0,8.276e-05,2]
[360543308,1746871833418,-406.1,8.276e-05,2]
[360543309,1746871833428,-400.0,8.276e-05,2]
[360543310,1746871833438,-1710.83,8.276e-05,2]
[360543312,1746871833448,-921.15,8.276e-05,2]
[360543314,1746871833458,-4296.49294336,8.276e-05,2]
[360543338,1746871838424,-500.0,8.272e-05,2]
[360543339,1746871838434,-500.0,8.272e-05,2]
[360543340,1746871838444,-189.24862964,8.272e-05,2]
[360543341,1746871838455,-500.0,8.272e-05,2]
[360543342,1746871838465,-427.21119994,8.272e-05,2]
[360543343,1746871838474,-255.67464474,8.272e-05,2]
[360543344,1746871838485,-244.32535526,8.272e-05,2]
[360543345,1746871838495,-238.74218342,8.272e-05,2]
[360543346,1746871838647,-261.25781658,8.272e-05,2]
[360543347,1746871838658,-500.0,8.272e-05,2]
[360543348,1746871838668,-500.0,8.272e-05,2]
[360543349,1746871838677,-500.0,8.272e-05,2]
[360543350,1746871838688,-500.0,8.272e-05,2]
[360543351,1746871838698,-500.0,8.272e-05,2]
[360543352,1746871838708,-500.0,8.272e-05,2]
[360543353,1746871838718,-500.0,8.272e-05,2]
[360543354,1746871838728,-400.0,8.274e-05,2]
[360543355,1746871838739,-1292.13,8.274e-05,2]
[360543356,1746871838749,-32.50705664,8.276e-05,2]
[360543357,1746871838758,-400.0,8.276e-05,2]
[360543358,1746871838769,-400.0,8.276e-05,2]
[360543359,1746871838779,-400.0,8.276e-05,2]
[360543360,1746871838790,-400.0,8.276e-05,2]
[360543361,1746871838800,-400.0,8.276e-05,2]
[360543362,1746871838809,-400.0,8.276e-05,2]
[360543363,1746871838818,-9468.29,8.276e-05,2]
[360543364,1746871838829,-400.0,8.276e-05,2]
[360543365,1746871838838,-400.0,8.276e-05,2]
[360543366,1746871838847,-400.0,8.276e-05,2]
[360543367,1746871838857,-1172.82,8.276e-05,2]
[360543368,1746871838876,-400.0,8.276e-05,2]
[360543369,1746871838892,-8554.6097938,8.276e-05,2]
[360543466,1746871840539,-500.0,8.272e-05,2]
[360543468,1746871840549,-500.0,8.272e-05,2]
[360543470,1746871840560,-500.0,8.272e-05,2]
[360543472,1746871840572,-500.0,8.272e-05,2]
[360543474,1746871840582,-500.0,8.272e-05,2]
[360543476,1746871840592,-264.48338247,8.272e-05,2]
[360543478,1746871840603,-500.0,8.272e-05,2]
[360543480,1746871840615,-500.0,8.272e-05,2]
[360543482,1746871840625,-992.2302062,8.276e-05,2]
[360543484,1746871840635,-400.0,8.276e-05,2]
[360543487,1746871840647,-545.99,8.276e-05,2]
[360543489,1746871840658,-400.0,8.276e-05,2]
[360543491,1746871840667,-3076.92,8.276e-05,2]
[360543493,1746871840678,-1914.03279534,8.276e-05,2]
[360543495,1746871840690,-453.00140696,8.276e-05,2]
[360543625,1746871844761,-562.61239197,8.276e-05,2]
[360543626,1746871844781,-0.62340573,8.276e-05,2]
[360543627,1746871844791,-3186.01,8.276e-05,2]
[360543628,1746871844801,-400.0,8.276e-05,2]
[360543629,1746871844811,-400.0,8.276e-05,2]
[360543630,1746871844820,-992.36659427,8.276e-05,2]
[360543636,1746871846432,-400.0,8.274e-05,2]
[360543637,1746871846441,-400.0,8.274e-05,2]
[360543638,1746871846452,-2677.77340573,8.276e-05,2]
[360543639,1746871846461,-1400.06,8.276e-05,2]
[360543640,1746871846471,-2409.85700513,8.276e-05,2]
[360543641,1746871846972,-566.82299487,8.276e-05,2]
[360543642,1746871846982,-447.17971359,8.276e-05,2]
[360543643,1746871846992,-150.23251531,8.276e-05,2]
[360543644,1746871847001,-400.0,8.276e-05,2]
[360543645,1746871847012,-689.09,8.276e-05,2]
[360543646,1746871847022,-400.0,8.276e-05,2]
[360543647,1746871847031,-207.4,8.276e-05,2]
[360543648,1746871847041,-400.0,8.277e-05,2]
[360543649,1746871847051,-400.0,8.277e-05,2]
[360543650,1746871847060,-400.0,8.277e-05,2]
[360543651,1746871847070,-400.0,8.277e-05,2]
[360543652,1746871847080,-400.0,8.277e-05,2]
[360543653,1746871847089,-1699.21,8.277e-05,2]
[360543654,1746871847099,-400.0,8.277e-05,2]
[360543655,1746871847109,-876.15,8.277e-05,2]
[360543656,1746871847119,-302.12633426,8.277e-05,2]
[360543657,1746871847133,-1719.25366574,8.277e-05,2]
[360543658,1746871847143,-1994.97,8.277e-05,2]
[360543659,1746871847153,-635.45,8.277e-05,2]
[360543660,1746871847162,-400.0,8.277e-05,2]
[360543661,1746871847172,-974.94,8.277e-05,2]
[360543662,1746871847181,-2463.5,8.277e-05,2]
[360543663,1746871847191,-400.0,8.277e-05,2]
[360543664,1746871847201,-459.01,8.277e-05,2]
[360543665,1746871847211,-400.0,8.277e-05,2]
[360543666,1746871847220,-414.14571159,8.277e-05,2]
[360543667,1746871847229,-884.93,8.277e-05,2]
[360543668,1746871847239,-402.34,8.277e-05,2]
[360543669,1746871847248,-592.94,8.277e-05,2]
[360543670,1746871847258,-404.35,8.277e-05,2]
[360543671,1746871847267,-400.0,8.277e-05,2]
[360543672,1746871847278,-400.0,8.277e-05,2]
[360543673,1746871847287,-400.0,8.277e-05,2]
[360543674,1746871847297,-2415.82,8.277e-05,2]
[360543675,1746871847306,-372.3327842,8.277e-05,2]
[360543676,1746871847316,-699.68,8.277e-05,2]
[360543677,1746871847325,-3154.13,8.277e-05,2]
[360543678,1746871847335,-1298.24856762,8.277e-05,2]
[360543679,1746871847344,-400.0,8.277e-05,2]
[360543680,1746871847353,-150.25672319,8.277e-05,2]
[360543689,1746872107403,-312.7084803,8.098e-05,2]
[360543692,1746872118030,-513.89203109,8.098e-05,2]
[360543693,1746872118053,-175.53842475,8.197e-05,2]
[360543694,1746872119441,-124.46157525,8.197e-05,2]
[360543695,1746872119465,-39.69786883,8.197e-05,2]
[360543714,1746872286044,3570.409197,7.218e-05,2]
[360543721,1746872361481,11378.7225213,7.397e-05,2]
[360543728,1746872446646,1000.0,0.00013,7]
[360543743,1746872577147,2000.0,0.0001399,7]
[360543751,1746872634991,3000.0,0.0001399,7]
[360543755,1746872660113,3000.0,0.0001399,7]
[360543802,1746872792530,1000.0,0.0001399,7]
[360543803,1746872805141,250.0,7.218e-05,2]
[360543821,1746872832738,2000.0,0.0001399,7]
[360543832,1746872856575,4000.0,0.0001399,7]
[360543841,1746872936822,3000.0,0.0001399,7]
[360543891,1746873032456,-300.0,8.188e-05,2]
[360543892,1746873032466,-1200.0,8.188e-05,2]
[360543893,1746873032475,-300.0,8.188e-05,2]
[360543900,1746873032687,-5.84688817,8.189e-05,2]
[360543902,1746873032701,-214.71613265,8.189e-05,2]
[360543904,1746873032710,-35.53386735,8.189e-05,2]
[360543907,1746873032722,-464.46613265,8.189e-05,2]
[360543908,1746873032731,-395.48386735,8.189e-05,2]
[360543911,1746873032744,-104.51613265,8.189e-05,2]
[360543913,1746873032754,-401.02282635,8.189e-05,2]
[360544137,1746873038345,-500.0,8.188e-05,2]
[360544139,1746873038355,-477.0638557,8.188e-05,2]
[360544141,1746873038365,-345.63174902,8.188e-05,2]
[360544143,1746873038374,-500.0,8.193e-05,2]
[360544145,1746873038384,-500.0,8.193e-05,2]
[360544147,1746873038393,-500.0,8.193e-05,2]
[360544149,1746873038403,-500.0,8.193e-05,2]
[360544151,1746873038412,-500.0,8.193e-05,2]
[360544153,1746873038422,-500.0,8.193e-05,2]
[360544155,1746873038431,-500.0,8.193e-05,2]
[360544157,1746873038441,-503.34300205,8.193e-05,2]
[360544159,1746873038450,-500.0,8.193e-05,2]
[360544161,1746873038459,-500.0,8.193e-05,2]
[360544163,1746873038469,-616.99504953,8.193e-05,2]
[360544165,1746873038478,-9326.27580868,8.196e-05,2]
[360544174,1746873038554,-458.30534584,8.187e-05,2]
[360544176,1746873038564,-500.0,8.187e-05,2]
[360544178,1746873038573,-389.45444027,8.187e-05,2]
[360544180,1746873038583,-85762.82505613,8.196e-05,2]